Workbook

Sheet 保証料 (hidden)
A1: 借入期間 | B1: 保証料
A2: 1 | B2: 1016
A3: 2 | B3: 1942
A4: 3 | B4: 2844
A5: 4 | B5: 3724
A6: 5 | B6: 4580
A7: 6 | B7: 5426
A8: 7 | B8: 6240
A9: 8 | B9: 7031
A10: 9 | B10: 7799
A11: 10 | B11: 8544
A12: 11 | B12: 9302
A13: 12 | B13: 10006
A14: 13 | B14: 10688
A15: 14 | B15: 11345
A16: 15 | B16: 11982
A17: 16 | B17: 12595
A18: 17 | B18: 13187
A19: 18 | B19: 13758
A20: 19 | B20: 14308
A21: 20 | B21: 14834
A22: 21 | B22: 15416
A23: 22 | B23: 15907
A24: 23 | B24: 16374
A25: 24 | B25: 16826
A26: 25 | B26: 17254
A27: 26 | B27: 17669
A28: 27 | B28: 18063
A29: 28 | B29: 18440
A30: 29 | B30: 18800
A31: 30 | B31: 19137
A32: 31 | B32: 19457
A33: 32 | B33: 19764
A34: 33 | B34: 20067
A35: 34 | B35: 20384
A36: 35 | B36: 20610

Sheet マクロ設定 (hidden)
A2: TRUE
A3: TRUE
A4: TRUE
A5: TRUE

Sheet 入力シート
B1: 【住宅ローン商品の比較】
B3: 基本設定 | C3: メモ | D3: 現在 | E3: 変動金利 | F3: 全期間固定金利
C4: 表示するタイトル | D4: 現在 | E4: 変動金利 | F4: 全期間固定
C5: 期末 | D5: 2038-05-01 | E5: =$D$5 -> 2038-05-01 | F5: =$D$5 -> 2038-05-01
C6: 表示方法 | D6: 西暦 | E6: 西暦 | F6: 西暦
B7: 支払設定 | C7: 残高（総額） | D7: 20000000 | E7: 20000000 | F7: =$D$7 -> 20000000
C8: 内賞与分 | E8: =$D$8 -> 0 | F8: =$D$8 -> 0
C9: 金利（％） | D9: 1.5 | E9: 0.6 | F9: 1.3
B10: 銀行諸費用 | C10: 事務手数料 | D10: 空欄の場合自動計算→ | E10: 43200
C11: 保証料 | D11: 空欄の場合自動計算→
C12: 金銭消費貸借契約印紙 | D12: 空欄の場合自動計算→
C13: 団体信用生命保険料 | D13: 手入力、空欄は0扱い→
C14: 登記費用 | D14: 手入力、空欄は0扱い→ | E14: 18000 | F14: 180000
C15: 一括返済手数料 | D15: 手入力、空欄は0扱い→
B16: その他 | C16: 経過利息 | D16: 手入力、空欄は0扱い→
C17: 戻り保証料 | D17: 手入力、空欄は0扱い→

Sheet 比較(リスト)
B1: 【住宅ローン商品の比較】
C2: 現在 | D2: 変動金利 | E2: 変動金利 （三大疾病付き）
A3: a 返済金額 | B3: 残高 （2018年3月支払後） | C3: 2,591万円 | D3: 2,591万円 | E3: 2,591万円
B4: 金利 | C4: 0.01975 | D4: 0.00575 | E4: 0.00875
B5: 返済年数（回数） | C5: 20年2ヶ月（242回） | D5: 20年2ヶ月（242回） | E5: 20年2ヶ月（242回）
B6: 毎月返済額 | C6: 129,899円 | D6: 113,430円 | E6: 116,840円
B7: ボーナス月返済額 | C7: － | D7: － | E7: －
A8: 比較 | B8: a) 総返済額 | C8: 3,144万円 | D8: 2,745万円 | E8: 2,828万円
B9: b) 諸費用合計 | C9: － | D9: 48万円 | E9: 63万円
B10: a+b) 支払総額 | C10: 3,144万円 | D10: 2,793万円 | E10: 2,891万円
B11: 差引メリット | C11: － | D11: 351万円 | E11: 253万円
A12: b 銀行諸費用 | B12: 事務手数料 | C12: － | D12: 4万円 | E12: 3万円
B13: 保証料 | C13: － | D13: 40万円 | E13: 40万円
B14: 金銭消費貸借契約印紙 | C14: － | D14: 2万円 | E14: 2万円
B15: 団体信用生命保険料 | C15: － | D15: 0円 | E15: 0円
B16: 司法書士手数料 | C16: － | D16: 2万円 | E16: 18万円
B17: 一括返済手数料 | C17: － | D17: 0円 | E17: 0円
B18: 経過利息 | C18: － | D18: 0円 | E18: 0円
B19: 戻り保証料 | C19: － | D19: 0円 | E19: 0円

Sheet 比較(現状)
B2: 住宅ローン比較（現状）
B3: （2018年3月～2038年5月）
C4: 借入金額 | D4: 金利 | E4: 返済金額 | F4: 期間 | G4: 返済総額 | K4: 借入金額 | L4: 金利 | M4: 返済金額 | N4: 期間 | O4: 返済総額 | Q4: 差額 | T4: 借入金額 | U4: 金利 | V4: 返済金額 | W4: 期間 | X4: 返済総額 | Z4: 差額
B5: 現在 | C5: 25912549 | D5: 1.975 | E5: 129899 | F5: 242 | G5: =IF(F5="","",E5*F5) -> 31435558 | J5: 変動金利 | K5: 25912549 | L5: 0.575 | M5: 113430 | N5: 242 | O5: =IF(N5="","",M5*N5) -> 27450060 | Q5: =IF($G5="","",O5-$G5) -> -3985498 | S5: 変動金利 （三大疾病付き） | T5: 25912549 | U5: 0.875 | V5: 116840 | W5: 242 | X5: =IF(W5="","",V5*W5) -> 28275280 | Z5: =IF($G5="","",X5-$G5) -> -3160278
B7: 0.01975 | J7: 0.00575 | S7: 0.00875
B9: 小計 | C9: =SUM(C5:C8) -> 25912549 | G9: =SUM(G5:G8) -> 31435558 | J9: 小計 | K9: =SUM(K5:K8) -> 25912549 | O9: =SUM(O5:O8) -> 27450060 | Q9: -3985498 | S9: 小計 | T9: =SUM(T5:T8) -> 25912549 | X9: =SUM(X5:X8) -> 28275280 | Z9: -3160278
N10: 諸経費 | O10: 480200 | W10: 諸経費 | X10: 631400
F11: 合計 | G11: =SUM(G9:G10) -> 31435558 | N11: 合計 | O11: =SUM(O9:O10) -> 27930260 | Q11: =IF($G11="","",O11-$G11) -> -3505298 | W11: 合計 | X11: =SUM(X9:X10) -> 28906680 | Z11: =IF($G11="","",X11-$G11) -> -2528878
E13: 支払金額/月 | G13: =SUM(E5:E8) -> 129899 | M13: 支払金額/月 | O13: =SUM(M5:M8) -> 113430 | Q13: =IF($G13="","",O13-$G13) -> -16469 | V13: 支払金額/月 | X13: =SUM(V5:V8) -> 116840 | Z13: =IF($G13="","",X13-$G13) -> -13059
E14: ボーナス/回 | G14: 0 | M14: ボーナス/回 | O14: 0 | Q14: 0 | V14: ボーナス/回 | X14: 0 | Z14: 0
E15: 年間返済額 | G15: =G13*12+G14*2 -> 1558788 | M15: 年間返済額 | O15: =O13*12+O14*2 -> 1361160 | Q15: -197628 | V15: 年間返済額 | X15: =X13*12+X14*2 -> 1402080 | Z15: -156708
E16: 残返済期間 | G16: 20年2ヶ月 | M16: 残返済期間 | O16: 20年2ヶ月 | V16: 残返済期間 | X16: 20年2ヶ月

Sheet 比較(引き下げ)
B2: 住宅ローン比較（金利引き下げ）
B3: （2018年3月～2038年5月）
C4: 借入金額 | D4: 金利 | E4: 返済金額 | F4: 期間 | G4: 返済総額 | J4: 借入金額 | K4: 金利 | L4: 返済金額 | M4: 期間 | N4: 返済総額 | P4: 差額
B5: 現在 （引き下げ後） | C5: 25912549 | D5: 0.744 | E5: 115343 | F5: 242 | G5: =IF(F5="","",E5*F5) -> 27913006 | I5: 変動金利 | J5: 25912549 | K5: 0.575 | L5: 113430 | M5: 242 | N5: =IF(M5="","",L5*M5) -> 27450060 | P5: =IF($G5="","",N5-$G5) -> -462946
B7: 0.00744 | I7: 0.00575
B9: 小計 | C9: =SUM(C5:C8) -> 25912549 | G9: =SUM(G5:G8) -> 27913006 | I9: 小計 | J9: =SUM(J5:J8) -> 25912549 | N9: =SUM(N5:N8) -> 27450060 | P9: -462946
M10: 諸経費 | N10: 480200
F11: 合計 | G11: =SUM(G9:G10) -> 27913006 | M11: 合計 | N11: =SUM(N9:N10) -> 27930260 | P11: =IF($G11="","",N11-$G11) -> 17254
E13: 支払金額/月 | G13: =SUM(E5:E8) -> 115343 | L13: 支払金額/月 | N13: =SUM(L5:L8) -> 113430 | P13: =IF($G13="","",N13-$G13) -> -1913
E14: ボーナス/回 | G14: 0 | L14: ボーナス/回 | N14: 0 | P14: 0
E15: 年間返済額 | G15: =G13*12+G14*2 -> 1384116 | L15: 年間返済額 | N15: =N13*12+N14*2 -> 1361160 | P15: -22956
E16: 残返済期間 | G16: 20年2ヶ月 | L16: 残返済期間 | N16: 20年2ヶ月

Sheet コメント
